Cogmind - Beta 14 @@@ ROGUE MODE // 2024.09.27 @ 22:24:00 Player: Corvi Result: Destroyed by D-53 Grenadier with Mini Grenade Launcher Performance ------------- Evolutions (1) 500 Regions Visited (6) 1200 Robots Destroyed (39) 195 Value Destroyed (700) 700 Prototype IDs (1) 20 Alien Tech Used (0) 0 Bonus (875) 875 TOTAL SCORE: 3490 Bonus ------- Follower Combat Kills 296 Met Imprinter 300 Was Imprinted 300 Friendly Fire -21 Cogmind --------- Core Integrity 0/400 Matter 300/300 Energy 150/150 System Corruption 0% Temperature Cool (0) Movement Hovering (150) Ox1 Location -6/Proximity Caves Parts ------- > --- POWER (1) -------- Light Angular Momentum Engine > --- PROPULSION (2) --- Combat Airjet > --- UTILITY (4) ------ Small Storage Unit 0b10 Decoder Chip [Scout] Makeshift System Shield > --- WEAPON (2) ------- CR-A16's Pointy Stick > --- INVENTORY (8) ---- Airjet Airjet Combat Airjet Reflective Plating Reflective Plating Authchip [Processor] Authchip [Weapon] Proton Missile Launcher Peak State ------------ > --- POWER ------------ Light Angular Momentum Engine > --- PROPULSION ------- Airjet Combat Airjet > --- UTILITY ---------- Small Storage Unit Experimental Sensor Array 0b10 Decoder Chip [Scout] Makeshift System Shield > --- WEAPON ----------- Beamcaster CR-A16's Pointy Stick > --- INVENTORY -------- Airjet Airjet Reflective Plating Reflective Plating Authchip [Processor] Authchip [Weapon] Beamcaster Proton Missile Launcher [Rating: 43] Favorites ----------- Power Nuclear Core Engine Improved Ion Engine Power Core Nuclear Core Propulsion Airjet Wheel Wheel Hover Unit Airjet Utility Small Storage Unit Device Experimental Sensor Array Storage Small Storage Unit Processor 0b10 Decoder Chip [Scout] Hackware Makeshift System Shield Protection Light Armor Plating Weapon CR-A16's Pointy Stick Energy Gun EM Shotgun Ballistic Gun Light Assault Rifle Launcher Grenade Launcher Special Weapon Mining Laser Slashing Weapon Ripper Piercing Weapon CR-A16's Pointy Stick Build | -11 -10 -10 -9 -9 -7 -6 ------- Run | Yrd Mat Min Mat Min Zio Pro Slots Evolved 2 | . . . 2 . . . Power . | . . . . . . . Propulsion . | . . . . . . . Utility 2 | . . . 2 . . . Weapon . | . . . . . . . Parts Attached 62 | 6 11 6 19 4 14 2 Power 11 | 1 2 2 1 1 3 1 Engine 8 | 1 2 2 1 1 . 1 Core 3 | . . . . . 3 . Reactor . | . . . . . . . Propulsion 9 | 2 . 1 3 . 2 1 Treads . | . . . . . . . Leg . | . . . . . . . Wheel 3 | 2 . 1 . . . . Hover 6 | . . . 3 . 2 1 Flight . | . . . . . . . Utility 18 | 1 3 . 8 . 6 . Device 7 | . 1 . 5 . 1 . Storage 2 | 1 . . . . 1 . Processor 2 | . . . . . 2 . Hackware 2 | . . . . . 2 . Protection 5 | . 2 . 3 . . . Artifact . | . . . . . . . Weapon 24 | 2 6 3 7 3 3 . Energy Gun 13 | 2 3 2 4 1 1 . Energy Cannon . | . . . . . . . Ballistic Gun 3 | . 2 1 . . . . Ballistic Cannon . | . . . . . . . Launcher 4 | . 1 . 2 1 . . Special Weapon 2 | . . . 1 1 . . Impact Weapon . | . . . . . . . Slashing Weapon 1 | . . . . . 1 . Piercing Weapon 1 | . . . . . 1 . Special Melee Weapon . | . . . . . . . Unidentified Prototypes 1 | . . . . . 1 . Parts Lost 15 | . 2 3 4 3 . 3 Power 2 | . 1 1 . . . . Propulsion 3 | . 1 . 1 . . 1 Utility 5 | . . 1 . 3 . 1 Weapon 5 | . . 1 3 . . 1 Highest Loss Streak 3 | . 2 2 2 3 . 3 To Critical Strikes . | . . . . . . . Average Slot Usage (%) 91 | . 82 74 87 75 94 98 Engine 6 | . 10 13 11 11 5 2 Core 4 | . . . . . 5 8 Wheel 3 | . 18 16 7 . . . Hover 17 | . . . 13 22 22 21 Device 7 | . . . 23 15 2 10 Storage 11 | . 14 14 11 11 11 11 Processor 9 | . . . . . 16 11 Hackware 6 | . . . . . 8 11 Protection 2 | . 13 2 3 . . . Energy Gun 12 | . 16 26 10 4 11 10 Ballistic Gun 1 | . 8 1 . . . . Special Weapon 1 | . . . 4 5 . . Piercing Weapon 6 | . . . . . 9 11 Peak Build Rating 43 | 6 7 10 18 18 42 43 Average Rating 26 | 5 5 7 14 15 31 39 On Entrance 13 | . 6 6 10 16 14 40 Naked Turns . | . . . . . . . Heaviest Build 28 | 11 17 18 28 19 21 23 Greatest Support 26 | 26 26 20 20 16 17 20 Greatest Overweight (x) 2 | . 1 1 2 1 2 1 Average Overweight (x) . | . . . . . . 1 Largest Inventory Capacity 35 | 8 8 8 8 8 35 8 Average Capacity 8 | 7 8 8 8 8 8 8 Most Carried 8 | 2 8 8 8 8 8 8 Average Carried 7 | 1 6 7 7 7 7 7 Final Capacity 8 | 8 8 8 8 8 8 8 Final Carried 8 | 2 8 6 8 7 8 8 Class Distribution -------------------- 55% | Mutant 44% | Derelict-Mutant Dominant Class ---------------- Mutant | -10/Materials Mutant | -10/Mines Mutant | -9/Materials Mutant | -9/Mines Derelict-Mutant | -7/Zion Derelict-Mutant | -6/Proximity Caves Resources | -11 -10 -10 -9 -9 -7 -6 ----------- Run | Yrd Mat Min Mat Min Zio Pro Matter Collected 999 | 254 135 70 152 138 230 20 Remotely . | . . . . . . . Salvage Created 925 | 20 261 163 292 105 . 84 Parts 72 | . 13 20 31 7 . 1 Haulers Intercepted 2 | . 1 . 1 . . . Recyclers Shooed 1 | . . . 1 . . . Parts Field Recycled . | . . . . . . . Retrieved Matter . | . . . . . . . Parts Self-Destructed 9 | . . . . . 1 8 Prevented 5 | . . . . . . 5 Kills | -11 -10 -10 -9 -9 -7 -6 ------- Run | Yrd Mat Min Mat Min Zio Pro Combat Hostiles Destroyed 31 | . 7 9 12 3 . . Guns 14 | . 4 8 1 1 . . AOE 16 | . 3 1 10 2 . . Classes Destroyed 8 | 1 4 . 3 . . . Worker 1 | . . . 1 . . . Builder 1 | . . . 1 . . . Tunneler 2 | 1 . 1 . . . . Hauler 2 | . 1 . 1 . . . Watcher 2 | . 1 . 1 . . . Swarmer 20 | . 3 9 8 . . . Grunt 7 | . 4 . 2 1 . . Sentry 4 | . . . 2 2 . . Best Kill Streak 6 | 1 3 6 6 2 . . Combat Bots Only 6 | . 3 6 4 2 . . Max Kills in Single Turn 3 | 1 3 1 3 2 . . Gunslinging . | . . . . . . . Exploded 3 | . 3 1 2 2 . . Melee . | . . . . . . . Uniques/NPCs Destroyed . | . . . . . . . Combat | -11 -10 -10 -9 -9 -7 -6 -------- Run | Yrd Mat Min Mat Min Zio Pro Hostile Shots Fired 159 | . 39 43 51 12 . 14 Missed 32 | . 6 9 12 5 . . Damage Taken 1777 | . 372 269 411 126 . 599 Core 530 | . 82 44 76 . . 328 Absorbed by Shields . | . . . . . . . Regen/Repaired (Parts) 54 | . . . 54 . . . Core Remaining (%) 74 | 100 . 49 . . . . Volleys Fired 116 | 3 47 24 27 9 . 6 Largest 2 | 2 2 2 2 2 . 1 Hottest 100 | 90 80 80 100 100 . 75 Shots Fired 184 | 6 75 46 41 10 . 6 Gun 161 | 6 74 46 28 1 . 6 Cannon . | . . . . . . . Launcher 19 | . 1 . 12 6 . . Special 4 | . . . 1 3 . . Kinetic 29 | . 29 . . . . . Thermal 45 | 6 29 . 1 3 . 6 Explosive 19 | . 1 . 12 6 . . Electromagnetic 91 | . 16 46 28 1 . . Robot Hit Streak 24 | 2 14 3 24 10 . 2 Robot Miss Streak 6 | 1 6 4 3 . . 2 Penetration Max . | . . . . . . . Secondary Targets 4 | . . 3 1 . . . Max Gunslinging Chain 1 | . . 1 1 . . . Shots Hit Robots 105 | 3 48 18 29 3 . 4 Core Hits 58 | 1 14 10 24 5 . 4 Critical Kills . | . . . . . . . Critical Parts Destroyed . | . . . . . . . Critical Strikes 4 | 1 2 1 . . . . Burn 3 | 1 2 . . . . . Corrupt 1 | . . 1 . . . . Melee Attacks 2 | . . . . . . 2 Impact . | . . . . . . . Slashing . | . . . . . . . Piercing 2 | . . . . . . 2 Sneak Attacks . | . . . . . . . Combat Hostiles . | . . . . . . . Follow-up Attacks . | . . . . . . . Damage Inflicted 2504 | 35 686 289 1166 138 . 190 Guns 1218 | 35 557 213 352 9 . 52 Cannons . | . . . . . . . Explosions 1124 | . 129 76 790 129 . . Melee 138 | . . . . . . 138 Ramming . | . . . . . . . Kinetic 195 | . 195 . . . . . Thermal 456 | 35 269 76 24 . . 52 Explosive 1048 | . 129 . 790 129 . . Electromagnetic 667 | . 93 213 352 9 . . Impact . | . . . . . . . Slashing . | . . . . . . . Piercing 138 | . . . . . . 138 Highest Corruption . | . . . . . . . Average Corruption . | . . . . . . . Corruption Purged . | . . . . . . . Corruption Blocked . | . . . . . . . Overload Shots . | . . . . . . . Overflow Damage 36 | . . . 34 2 . . Projectiles . | . . . . . . . Explosions 36 | . . . 34 2 . . Melee . | . . . . . . . Knockbacks . | . . . . . . . Impact . | . . . . . . . Kinetic . | . . . . . . . Secondary . | . . . . . . . Self-Inflicted Damage 26 | . 4 . . 22 . . Shots 2 | . 1 . . 1 . . Rammed . | . . . . . . . Targets Rammed . | . . . . . . . Kicked . | . . . . . . . Crushed . | . . . . . . . Highest Temperature 216 | 70 189 189 216 44 . 127 Average Temperature 69 | 40 73 80 71 21 . 58 Received Heat Transfer 324 | . 201 . 90 33 . . Siege Activations . | . . . . . . . Robots Corrupted 1 | . . . 1 . . . Combat Hostiles 1 | . . . 1 . . . Parts Fried 4 | . . 1 3 . . . Impact Corruptions . | . . . . . . . Robots Melted . | . . . . . . . Combat Hostiles . | . . . . . . . Parts Melted 2 | . 1 1 . . . . Heat Transferred 1311 | 173 914 100 50 . . 74 Parts Sabotaged . | . . . . . . . Parts Stolen . | . . . . . . . Parts Stripped . | . . . . . . . Power Chain Reactions 1 | . . 1 . . . . Alert | -11 -10 -10 -9 -9 -7 -6 ------- Run | Yrd Mat Min Mat Min Zio Pro Peak Influence 358 | 5 231 249 358 224 . . Initial 116 | . 3 27 96 116 . . Average 158 | . 96 200 206 181 . . Maximum Alert Level 1 | . 1 1 1 1 . . Low Security (%) 68 | 100 93 30 66 39 . . Level 1 31 | . 6 69 33 60 . . Level 2 . | . . . . . . . Level 3 . | . . . . . . . Level 4 . | . . . . . . . Level 5 . | . . . . . . . High Security . | . . . . . . . Max Security . | . . . . . . . Squads Dispatched 2 | . 2 . . . . . Investigation . | . . . . . . . Extermination . | . . . . . . . Reinforcement 2 | . 2 . . . . . Assault . | . . . . . . . Garrison . | . . . . . . . Intercept . | . . . . . . . Searches Triggered . | . . . . . . . Construction Impeded . | . . . . . . . Haulers Reinforced . | . . . . . . . Active Scanning Responses . | . . . . . . . Cargo Convoy Interrupts . | . . . . . . . Stealth | -11 -10 -10 -9 -9 -7 -6 --------- Run | Yrd Mat Min Mat Min Zio Pro Distress Signals 24 | . . . . 1 . 23 Communications Jammed . | . . . . . . . Distress Signals . | . . . . . . . Times Spotted 55 | . 16 9 16 7 . 7 Peak Tracking Total 5 | . 3 3 5 5 . 3 Tactical Retreats 2 | . . 1 . 1 . . Traps | -11 -10 -10 -9 -9 -7 -6 ------- Run | Yrd Mat Min Mat Min Zio Pro Traps Triggered . | . . . . . . . Indirectly . | . . . . . . . Trap Hack Attempts . | . . . . . . . Triggered . | . . . . . . . Disarmed . | . . . . . . . Reprogrammed . | . . . . . . . Reused . | . . . . . . . Traps Extracted . | . . . . . . . Installed . | . . . . . . . Triggered . | . . . . . . . Machines | -11 -10 -10 -9 -9 -7 -6 ---------- Run | Yrd Mat Min Mat Min Zio Pro Machines Disabled 1 | . . . . 1 . . Max in Single Turn 1 | . . . . 1 . . Machines Repaired . | . . . . . . . Machines Dismantled . | . . . . . . . Machines Sabotaged . | . . . . . . . Overloaded Fab Kills . | . . . . . . . Hacking | -11 -10 -10 -9 -9 -7 -6 --------- Run | Yrd Mat Min Mat Min Zio Pro Machines Accessed 11 | . 3 . 7 . . 1 Terminals 6 | . 2 . 3 . . 1 Fabricators . | . . . . . . . Repair Stations 2 | . 1 . 1 . . . Recycling Units 1 | . . . 1 . . . Scanalyzers 2 | . . . 2 . . . Garrison Access . | . . . . . . . Total Hacks 33 | . 6 . 26 . . 1 Successful 25 | . 3 . 21 . . 1 Failed 8 | . 3 . 5 . . . Catastrophic . | . . . . . . . Database Lockouts . | . . . . . . . Manual 16 | . 4 . 7 . 3 2 Terminals 12 | . 4 . 7 . . 1 Fabricators . | . . . . . . . Repair Stations 9 | . 2 . 7 . . . Recycling Units 4 | . . . 4 . . . Scanalyzers 8 | . . . 8 . . . Garrison Access . | . . . . . . . Terminal Hacks 7 | . 2 . 4 . . 1 Record 1 | . . . . . . 1 Robot Analysis 2 | . 1 . 1 . . . Terminal Index 2 | . 1 . 1 . . . Scanalyzer Index 1 | . . . 1 . . . Hauler Manifests 1 | . . . 1 . . . Fabricator Hacks . | . . . . . . . Repair Station Hacks 6 | . 1 . 5 . . . Scan Component 3 | . . . 3 . . . Repair 2 | . . . 2 . . . Refit 1 | . 1 . . . . . Recycling Unit Hacks 3 | . . . 3 . . . Report Inventory 1 | . . . 1 . . . Retrieve Matter 1 | . . . 1 . . . Retrieve Components 1 | . . . 1 . . . Scanalyzer 8 | . . . 8 . . . Insert Component 4 | . . . 4 . . . Analyze 4 | . . . 4 . . . Garrison Access Hacks . | . . . . . . . Unauthorized Hacks 1 | . . . 1 . . . Terminals 1 | . . . 1 . . . Botnet 1 | . . . 1 . . . Fabricators . | . . . . . . . Repair Stations . | . . . . . . . Recycling Units . | . . . . . . . Scanalyzers . | . . . . . . . Garrison Access . | . . . . . . . Data Cores Recovered . | . . . . . . . Used . | . . . . . . . Hacking Detections 6 | . 2 . 4 . . . Full Trace Events . | . . . . . . . Feedback Events . | . . . . . . . Feedback Blocked . | . . . . . . . Robot Schematics Acquired . | . . . . . . . Robots Built . | . . . . . . . Authchips . | . . . . . . . Time . | . . . . . . . Total Robot Build Rating . | . . . . . . . Part Schematics Acquired 4 | . . . 4 . . . Parts Built . | . . . . . . . Authchips . | . . . . . . . Time . | . . . . . . . Total Part Build Rating . | . . . . . . . Parts Repaired 2 | . . . 2 . . . Time 64 | . . . 64 . . . Parts Recycled . | . . . . . . . Recycled Matter . | . . . . . . . Retrieved Matter . | . . . . . . . Retrieved Components 1 | . . . 1 . . . Parts Scanalyzed 4 | . . . 4 . . . Part Schematics Acquired 4 | . . . 4 . . . Parts Damaged 1 | . . . 1 . . . Bothacking | -11 -10 -10 -9 -9 -7 -6 ------------ Run | Yrd Mat Min Mat Min Zio Pro Used RIF Installer . | . . . . . . . Robots Hacked . | . . . . . . . Non-combat . | . . . . . . . Combat . | . . . . . . . Robot Hacks Applied . | . . . . . . . Relay Couplers Released . | . . . . . . . Fabnet Peak Effective % . | . . . . . . . Robots Rewired . | . . . . . . . Allies Hacked . | . . . . . . . Hacks Repelled . | . . . . . . . Allies | -11 -10 -10 -9 -9 -7 -6 -------- Run | Yrd Mat Min Mat Min Zio Pro Total Allies 6 | . . . . . 4 2 Largest Group 5 | . . . . . 4 5 Highest-Rated Group 306 | . . . . . 151 306 Highest-Rated Ally 96 | . . . . . 39 96 Total Orders . | . . . . . . . Ally Attacks 56 | . . . . . . 56 Total Damage 1583 | . . . . . . 1583 Kills 11 | . . . . . . 11 Allies Corrupted . | . . . . . . . Allies Melted . | . . . . . . . Intel | -11 -10 -10 -9 -9 -7 -6 ------- Run | Yrd Mat Min Mat Min Zio Pro Robot Analysis Total 2 | . 1 . 1 . . . Derelict Logs Recovered 4 | . . . . . 2 2 Drone Launches . | . . . . . . . Drone Recoveries . | . . . . . . . Exploration | -11 -10 -10 -9 -9 -7 -6 ------------- Run | Yrd Mat Min Mat Min Zio Pro Turns Passed 5353 | 79 573 278 694 178 2358 1193 Spaces Moved 4538 | 65 454 215 554 189 2084 977 Core 4 | 4 . . . . . . Treads . | . . . . . . . Legs . | . . . . . . . Wheels 941 | 61 454 215 211 . . . Hover 3593 | . . . 343 189 2084 977 Flight . | . . . . . . . Fastest Speed 50 | 50 80 80 56 56 56 116 Average Speed 104 | 89 90 90 88 71 110 117 Slowest Speed 180 | 100 95 95 180 116 180 150 Overloaded Moves . | . . . . . . . Propulsion Burnouts . | . . . . . . . Robots Hopped . | . . . . . . . Cave-ins Triggered . | . . . . . . . Exploration Rate (%) 50 | 5 64 47 41 30 91 74 Regions Visited 6 Branch Regions 4 Pre-discovered Areas 3 | . . . . . 3 . Known Exits Taken . | . . . . . . . Unknown Exits Taken 6 | 1 1 1 1 1 1 . Scrap Searched 7 | . . 1 . . 5 1 Spaces Dug 19 | . . . . 19 . . Terrain Destroyed 121 | . 3 7 66 45 . . Melee . | . . . . . . . Projectile 2 | . . . . 2 . . AOE 119 | . 3 7 66 43 . . Terrain Rammed . | . . . . . . . Walls Destroyed . | . . . . . . . Machines Disabled . | . . . . . . . Actions | -11 -10 -10 -9 -9 -7 -6 --------- Run | Yrd Mat Min Mat Min Zio Pro Total 4974 | 76 549 252 718 215 2149 1015 Wait 175 | 1 20 5 85 10 32 22 Move 4532 | 64 453 214 553 188 2083 977 Hop . | . . . . . . . Pick Up 34 | 2 8 . 15 1 6 2 Fast Attach 41 | 6 7 4 11 . 11 2 Attach 17 | . 3 2 7 3 2 . Detach 7 | . 2 . 3 2 . . Swap 4 | . 1 . 1 1 1 . Drop 46 | . 8 3 16 1 14 4 Fire 116 | 3 47 24 27 9 . 6 Melee 2 | . . . . . . 2 Ram . | . . . . . . . Kick . | . . . . . . . Crush . | . . . . . . . Escape Stasis . | . . . . . . . Rewire . | . . . . . . . Trap . | . . . . . . . Miscellaneous . | . . . . . . . Route ------- -11/Scrapyard -10/Materials (discovered 2 exits: [*Min x2]) -10/Mines -9/Materials (discovered 3 exits: [*Mat x2] / [*Min]) -9/Mines -7/Zion -6/Proximity Caves History --------- Turn | Location | Event 11 | -11/Scrapyard | Discovered new exit (range 15) 80 | -11/Scrapyard | Entered Materials 173 | -10/Materials | Discovered new exit (range 7) 312 | -10/Materials | Build established: Mutant 626 | -10/Materials | Discovered new exit (range 14) 653 | -10/Materials | Entered Mines 675 | -10/Mines | Met a Derelict bent on vengeance 743 | -10/Mines | Core integrity fell below 50% 916 | -10/Mines | Discovered new exit (range 11) 931 | -10/Mines | Entered Materials 931 | -9/Materials | Evolved 2 slots: Utility x2 1032 | -9/Materials | Discovered new exit (range 15) 1164 | -9/Materials | Discovered new exit (range 15) 1416 | -9/Materials | Repaired Airjet 1443 | -9/Materials | Repaired Lgt. Armor Plating 1548 | -9/Materials | Discovered new exit (range 8) 1625 | -9/Materials | Entered Mines 1626 | -9/Mines | A Derelict revealed a hidden shortcut to a safe place 1670 | -9/Mines | Assembled infested the area 1675 | -9/Mines | Assisted by a Guerilla fighting off Assembled 1683 | -9/Mines | Found a damaged Exp. Sensor Array with a note attached 1686 | -9/Mines | Found Prototype Device 1755 | -9/Mines | Lost 3 parts (3u) 1803 | -9/Mines | Entered Zion 2004 | -7/Zion | Learned 8 Factory zone layouts 2170 | -7/Zion | Found CR-A16's Pointy Stick 2426 | -7/Zion | Learned 4 Factory zone layouts 2590 | -7/Zion | Met Imprinter 2614 | -7/Zion | Imprinted 2616 | -7/Zion | Declared Zion's savior 2867 | -7/Zion | Given A8's code to call for help 2889 | -7/Zion | Learned location of Data Miner (-6) 3228 | -7/Zion | Build established: Derelict-Mutant 3619 | -7/Zion | Identified Exp. Sensor Array 3786 | -7/Zion | Discovered new exit (range 12) 3846 | -7/Zion | Received a hallucinogenic algorithm 4161 | -7/Zion | Entered Proximity Caves 4161 | -6/Proximity Caves | Accompanied by 4 allies 4163 | -6/Proximity Caves | Attracted the attention of an 0b10 checkpoint 4221 | -6/Proximity Caves | Learned 4 Factory zone layouts 4421 | -6/Proximity Caves | Enhanced Grunt warped into view, answering call for help 4424 | -6/Proximity Caves | Enhanced Grunt warped into view, answering call for help 5292 | -6/Proximity Caves | Lost 5 allies 5323 | -6/Proximity Caves | Core integrity fell below 50% 5344 | -6/Proximity Caves | Core integrity fell below 20% 5351 | -6/Proximity Caves | Lost 3 parts (1n1u1w) 5354 | -6/Proximity Caves | Destroyed by D-53 Grenadier with Mini Grenade Launcher Last Messages --------------- Enhanced Grunt destroyed. Destroyed Angular Momentum Engine. Com. Wheel self-destruct mechanism malfunctions. 63-BQD(M) reactivates. MP-MJA(M) destroyed. Corrupted Cmb. Airjet self-destruct mechanism malfunctions. Cmb. Airjet self-destruct mechanism malfunctions. Dropped Gravmag System. Acquired Cmb. Airjet. Dropped Beamcaster. Acquired 10 matter. Acquired Corrupted Cmb. Airjet. 3O-ZDS(M) destroyed. Dispatcher launches Target Drone into the air. 63-BQD(M) destroyed. Target Drone destroyed. Airjet destroyed. Beamcaster destroyed. Exp. Sensor Array destroyed. Target Drone destroyed. Map ----- +----------------------------------------------------+ | #######?####??????### #?????????????????????? | | ### ##?????# % #??????????????????????? | | % % % %####??# %##??????????????????????? | | %#### ####???????????????????????? | | % ## % ## #??????????????????????????? | | ######## %%#??????????????????????????? | | % ##?????# % % #??????????????????????????? | | % ##????# % % #??????????????????????????? | | ##???# % #??????????????????????????? | | ## % %#???# % #??????????????????????????? | | % ## #??# % ## ###????????????????????????? | | %% #?# #### ##??????????????????###### | | % ##?# #?##% % ##????????????????# | | % #??## ##?# ######???????????# | | ##### #???#####??# ## #???????????# | | ?????###??????????###### % #???????????# | | ??????#####??????###?## % ##???????????# | | ??##### ##????## ## ##????????????# | | ??# ##??## #???????????### | | ??# #??# % #####???????????# | | #?# ##### ##?######???????# | | #?# % ###### ## # ###?????# | | #?# ## ##??### ##????# | | #?# #### #????# #????# | | #?####???# #???## #????# | | ?????????# ##?## @ #?????# | | ?????????# ### #?????# | | ?????????# % ## %% ####### | | ########## % % ## # | | ## ## % ## d # | | # % %### #### # [ | | # % ### #?# %##### % | | ##### % % ##?####?# ## | | ?### % ####???????#%%### | | ?# % % %##??????????# #?## | | ?# % ##???????#### #??## | | ?# % #??????# #???### # | | ?## ####% %##????? #?????# # | | ??##???##% ###### #######?##### | | ????????#% #### ##????# | | ????????# ### #????# | | ?????############# ### ##???# | | ????## #???????## #??# #???# | | ????# #??????# #??## ## #???# | | ????# ??????# #???# ## #???# | | ????# ??????# #???# ## #???############## | | ##### ????## ##### ## #????????????????? | | ????# #### #????????????????? | | #?????# ##??# #????????????????? | | ### ##????# #???# ### ##???????????????? | +----------------------------------------------------+ Best States ------------- Heat Dissipation 28 Energy Generation 18 Energy Capacity 265 Matter Stores 300 Matter Capacity 300 Sight Range 16 Robot Scan Range 20 Terrain Scan Density 10 Armor Coverage 225 Evasion (%) 61 Defensive Hacking 11 Authchip Count 2 Item Schematics ----------------- Grenade Launcher | -9/Materials | Scanalyzed EM Shotgun | -9/Materials | Scanalyzed Hover Unit | -9/Materials | Scanalyzed Airjet | -9/Materials | Scanalyzed Robot Schematics ------------------ None Fabricated ------------ Nothing Alien Tech Used ----------------- None Achievements -------------- Help From High Places Challenges ------------ None Game ------ Seed WarlordMetafiberTriangulator Manual? 0 Play Time 00:53:37 Cumulative 35.3 hours Start 2024.09.27 @ 21:20:53 End 2024.09.27 @ 22:24:00 Sessions 1 Manual Loads 0 Difficulty Rogue Special Mode None Game No. 41 Rogue 41 Adventurer 0 Explorer 0 Win Type - Total 0 Types 0/0/0/0/0/0/0/0/0 Lore% 21 Gallery% 35 Achievement% 33 Wizard Run 0 Options --------- Layout 0 ASCII 0 Keyboard 0 Movement Arrows Keybinds 0 Fullscreen 1 Font 18/SmallcapsGlow Map View 76x50 Zoom Use 0% Tactical HUD 0 Map Filters NONE Filters NONE Steam 0 RUN: 84cadd80-a0f7-439d-96f0-1f071d540efc